[Event "Early-Titled-Tuesday-Blitz-February-27-2024"]
[Site "Chess.com"]
[Date "2024.02.27"]
[Round "4"]
[White "ChessboArt"]
[Black "MattyDPerrine"]
[Result "0-1"]
[WhiteElo "2257"]
[BlackElo "2501"]
[TimeControl "180+1"]
[EndTime "8:37:18 PST"]
[Termination "MattyDPerrine won by resignation"]

1. Nf3 {[%clk 0:03:00.9]} 1... d5 {[%clk 0:02:58.1]} 2. g3 {[%clk 0:03:00.8]}
2... c5 {[%clk 0:02:58.3]} 3. Bg2 {[%clk 0:03:01.1]} 3... Nc6 {[%clk 0:02:59.1]}
4. c4 {[%clk 0:02:59.5]} 4... dxc4 {[%clk 0:02:56.5]} 5. O-O {[%clk 0:02:58.9]}
5... e5 {[%clk 0:02:45.3]} 6. Qa4 {[%clk 0:02:42.5]} 6... Bd6 {[%clk 0:02:44.5]}
7. Na3 {[%clk 0:02:39.3]} 7... Bd7 {[%clk 0:02:31.1]} 8. Nxc4 {[%clk 0:02:38.2]}
8... Bc7 {[%clk 0:02:20.5]} 9. d3 {[%clk 0:02:18.1]} 9... Nge7 {[%clk
0:02:00.9]} 10. a3 {[%clk 0:02:13.4]} 10... Rb8 {[%clk 0:01:39.4]} 11. Qd1
{[%clk 0:01:58.7]} 11... O-O {[%clk 0:01:26.9]} 12. b3 {[%clk 0:01:54.2]} 12...
f6 {[%clk 0:01:18.9]} 13. Bb2 {[%clk 0:01:53.8]} 13... Be6 {[%clk 0:01:18.8]}
14. Rc1 {[%clk 0:01:53.6]} 14... Qd7 {[%clk 0:01:12.4]} 15. Qd2 {[%clk
0:01:24.8]} 15... b5 {[%clk 0:00:52.6]} 16. Ne3 {[%clk 0:01:21]} 16... Na5
{[%clk 0:00:50]} 17. Qc2 {[%clk 0:00:27.6]} 17... Nxb3 {[%clk 0:00:48.4]} 18.
Rb1 {[%clk 0:00:27.6]} 18... a5 {[%clk 0:00:31.9]} 19. Rfd1 {[%clk 0:00:21.5]}
19... Rfc8 {[%clk 0:00:23.2]} 20. Nf1 {[%clk 0:00:21.5]} 20... Bb6 {[%clk
0:00:18.6]} 21. N1d2 {[%clk 0:00:21.5]} 21... Nd4 {[%clk 0:00:17.9]} 22. Nxd4
{[%clk 0:00:20]} 22... cxd4 {[%clk 0:00:18.8]} 0-1

[Event "Early-Titled-Tuesday-Blitz-February-27-2024"]
[Site "Chess.com"]
[Date "2024.02.27"]
[Round "4"]
[White "MetiForce"]
[Black "maximnovik"]
[Result "1-0"]
[WhiteElo "2892"]
[BlackElo "2604"]
[TimeControl "180+1"]
[EndTime "8:37:20 PST"]
[Termination "MetiForce won by checkmate"]

1. Nf3 {[%clk 0:03:00.3]} 1... Nf6 {[%clk 0:02:59.8]} 2. d4 {[%clk 0:02:59]}
2... g6 {[%clk 0:02:59.7]} 3. Nc3 {[%clk 0:02:54.9]} 3... d5 {[%clk 0:02:59.4]}
4. Bg5 {[%clk 0:02:55.2]} 4... Bg7 {[%clk 0:02:59.3]} 5. Bxf6 {[%clk 0:02:54.5]}
5... exf6 {[%clk 0:02:59.4]} 6. e4 {[%clk 0:02:48.5]} 6... dxe4 {[%clk 0:02:54]}
7. Nxe4 {[%clk 0:02:44.6]} 7... O-O {[%clk 0:02:53.5]} 8. Be2 {[%clk 0:02:44.4]}
8... f5 {[%clk 0:02:48]} 9. Nc5 {[%clk 0:02:33.1]} 9... b6 {[%clk 0:02:41.8]}
10. Nb3 {[%clk 0:02:32.8]} 10... Bb7 {[%clk 0:02:24.9]} 11. O-O {[%clk
0:02:31.4]} 11... c5 {[%clk 0:02:22.5]} 12. dxc5 {[%clk 0:02:29.4]} 12... Bxb2
{[%clk 0:02:21.2]} 13. Rb1 {[%clk 0:02:29.5]} 13... Bf6 {[%clk 0:02:17.9]} 14.
a4 {[%clk 0:02:29.8]} 14... Qc7 {[%clk 0:02:05]} 15. Qd2 {[%clk 0:01:58.4]}
15... bxc5 {[%clk 0:01:58.1]} 16. Nxc5 {[%clk 0:01:44.8]} 16... Bc6 {[%clk
0:01:55.7]} 17. Rfd1 {[%clk 0:01:41.1]} 17... Rd8 {[%clk 0:01:50.4]} 18. Qe3
{[%clk 0:01:37.8]} 18... Rxd1+ {[%clk 0:01:44.1]} 19. Rxd1 {[%clk 0:01:38.5]}
19... Nd7 {[%clk 0:01:42]} 20. Na6 {[%clk 0:01:38.8]} 20... Qa5 {[%clk
0:01:07.5]} 21. Bb5 {[%clk 0:01:07.1]} 21... Bxb5 {[%clk 0:01:00.2]} 22. axb5
{[%clk 0:01:08]} 22... Qxb5 {[%clk 0:00:58.9]} 23. Nc7 {[%clk 0:01:08]} 23...
Qc6 {[%clk 0:00:35.6]} 24. Nxa8 {[%clk 0:01:02.7]} 24... Nf8 {[%clk 0:00:36.5]}
25. Qxa7 {[%clk 0:01:00]} 25... Qxc2 {[%clk 0:00:36.5]} 26. Rf1 {[%clk
0:00:59.6]} 26... Ne6 {[%clk 0:00:33.7]} 27. Nb6 {[%clk 0:00:58.1]} 27... Nf4
{[%clk 0:00:22.1]} 28. Nd7 {[%clk 0:00:48.2]} 28... Bb2 {[%clk 0:00:19.1]} 29.
Qb8+ {[%clk 0:00:42.1]} 29... Kg7 {[%clk 0:00:19.1]} 30. Qf8# {[%clk 0:00:41.2]}
1-0

[Event "Early-Titled-Tuesday-Blitz-February-27-2024"]
[Site "Chess.com"]
[Date "2024.02.27"]
[Round "4"]
[White "Semen16"]
[Black "Caroexpert"]
[Result "1-0"]
[WhiteElo "2727"]
[BlackElo "2516"]
[TimeControl "180+1"]
[EndTime "8:37:22 PST"]
[Termination "Semen16 won by resignation"]

1. e4 {[%clk 0:03:00.9]} 1... c6 {[%clk 0:02:59]} 2. d4 {[%clk 0:03:00.6]} 2...
d5 {[%clk 0:02:59.9]} 3. Nc3 {[%clk 0:03:01]} 3... dxe4 {[%clk 0:02:59.8]} 4.
Nxe4 {[%clk 0:03:01.8]} 4... Nf6 {[%clk 0:03:00.6]} 5. Nxf6+ {[%clk 0:03:01.7]}
5... exf6 {[%clk 0:03:01.5]} 6. c3 {[%clk 0:02:59.4]} 6... Bd6 {[%clk
0:03:01.1]} 7. Bd3 {[%clk 0:03:00]} 7... O-O {[%clk 0:03:01.3]} 8. Qc2 {[%clk
0:03:00.4]} 8... Re8+ {[%clk 0:03:00.8]} 9. Ne2 {[%clk 0:03:01.1]} 9... h5
{[%clk 0:02:59.7]} 10. O-O {[%clk 0:03:00.8]} 10... h4 {[%clk 0:02:58.4]} 11.
Nf4 {[%clk 0:03:00.8]} 11... Bxf4 {[%clk 0:01:48.6]} 12. Bxf4 {[%clk 0:03:00.4]}
12... h3 {[%clk 0:01:48.6]} 13. g3 {[%clk 0:02:50.5]} 13... Nd7 {[%clk
0:01:47.3]} 14. Qd1 {[%clk 0:02:25.3]} 14... Nf8 {[%clk 0:01:45.4]} 15. Qh5
{[%clk 0:02:25.2]} 15... g6 {[%clk 0:01:26.7]} 16. Qh6 {[%clk 0:02:16.7]} 16...
Qd5 {[%clk 0:01:07.4]} 17. f3 {[%clk 0:02:15]} 17... Bf5 {[%clk 0:01:01.6]} 18.
Bxf5 {[%clk 0:01:44.5]} 18... Qxf5 {[%clk 0:01:01.2]} 19. Rae1 {[%clk
0:01:45.2]} 19... g5 {[%clk 0:00:38.6]} 20. Bc1 {[%clk 0:01:37.8]} 20... Rxe1
{[%clk 0:00:24.3]} 21. Rxe1 {[%clk 0:01:36.6]} 21... Qxf3 {[%clk 0:00:21.6]} 22.
Qxh3 {[%clk 0:01:36.9]} 22... Ng6 {[%clk 0:00:20.3]} 23. Rf1 {[%clk 0:01:28.1]}
23... Qd3 {[%clk 0:00:11.4]} 24. Rxf6 {[%clk 0:01:18.8]} 24... Re8 {[%clk
0:00:11.4]} 25. Rf1 {[%clk 0:01:18.9]} 25... Re2 {[%clk 0:00:10.9]} 26. Qd7
{[%clk 0:01:15.1]} 26... Re7 {[%clk 0:00:07.4]} 27. Qd8+ {[%clk 0:01:10.9]}
27... Kg7 {[%clk 0:00:05]} 28. Bxg5 {[%clk 0:01:11.4]} 28... Re6 {[%clk
0:00:02.6]} 29. Qd7 {[%clk 0:01:06.1]} 29... Nh8 {[%clk 0:00:01.5]} 30. Bf4
{[%clk 0:00:57.1]} 30... Qe2 {[%clk 0:00:01.2]} 31. Be5+ {[%clk 0:00:55.5]}
31... Rxe5 {[%clk 0:00:01.8]} 32. dxe5 {[%clk 0:00:55.5]} 32... Qxe5 {[%clk
0:00:02.7]} 1-0

[Event "Early-Titled-Tuesday-Blitz-February-27-2024"]
[Site "Chess.com"]
[Date "2024.02.27"]
[Round "4"]
[White "Nikolakis2014"]
[Black "JulbeNn"]
[Result "1-0"]
[WhiteElo "2757"]
[BlackElo "2549"]
[TimeControl "180+1"]
[EndTime "8:37:23 PST"]
[Termination "Nikolakis2014 won on time"]

1. d4 {[%clk 0:02:55.1]} 1... Nf6 {[%clk 0:03:00.2]} 2. c4 {[%clk 0:02:54.1]}
2... c5 {[%clk 0:02:59.9]} 3. d5 {[%clk 0:02:52.9]} 3... b5 {[%clk 0:02:59.9]}
4. cxb5 {[%clk 0:02:53]} 4... a6 {[%clk 0:03:00.3]} 5. e3 {[%clk 0:02:53.2]}
5... axb5 {[%clk 0:02:59.8]} 6. Bxb5 {[%clk 0:02:53.1]} 6... Qa5+ {[%clk
0:03:00.4]} 7. Nc3 {[%clk 0:02:53.1]} 7... Ba6 {[%clk 0:02:55.9]} 8. Be2 {[%clk
0:02:28.4]} 8... g6 {[%clk 0:02:47]} 9. Nf3 {[%clk 0:02:26.4]} 9... Bg7 {[%clk
0:02:47.2]} 10. O-O {[%clk 0:02:26.5]} 10... O-O {[%clk 0:02:30]} 11. e4 {[%clk
0:02:26.1]} 11... d6 {[%clk 0:02:21.4]} 12. Re1 {[%clk 0:02:20]} 12... Nbd7
{[%clk 0:01:49.7]} 13. h3 {[%clk 0:02:19.2]} 13... Rfb8 {[%clk 0:01:48.4]} 14.
Bxa6 {[%clk 0:02:17.1]} 14... Qxa6 {[%clk 0:01:47.8]} 15. Re2 {[%clk 0:02:17.2]}
15... Ne8 {[%clk 0:01:45.8]} 16. Bg5 {[%clk 0:02:10]} 16... Nc7 {[%clk
0:01:29.7]} 17. Bxe7 {[%clk 0:01:39.8]} 17... f6 {[%clk 0:01:27.5]} 18. e5
{[%clk 0:01:39.2]} 18... fxe5 {[%clk 0:00:50.6]} 19. Ne4 {[%clk 0:01:37]} 19...
Ne8 {[%clk 0:00:47.8]} 20. Nfg5 {[%clk 0:01:30.1]} 20... Nf8 {[%clk 0:00:39.7]}
21. Rd2 {[%clk 0:01:22.2]} 21... Rb7 {[%clk 0:00:32.6]} 22. Bxf8 {[%clk
0:01:20]} 22... Bxf8 {[%clk 0:00:33.5]} 23. Qg4 {[%clk 0:01:17.1]} 23... Re7
{[%clk 0:00:24.4]} 24. h4 {[%clk 0:01:13.5]} 24... Qc8 {[%clk 0:00:14.9]} 25.
Qg3 {[%clk 0:01:06.2]} 25... Qf5 {[%clk 0:00:07.4]} 26. Rd3 {[%clk 0:00:55.8]}
26... Qf4 {[%clk 0:00:02.9]} 27. Qh3 {[%clk 0:00:53.8]} 27... h6 {[%clk
0:00:01.8]} 28. Rf3 {[%clk 0:00:52.6]} 28... hxg5 {[%clk 0:00:01.3]} 29. Rxf4
{[%clk 0:00:52.7]} 29... exf4 {[%clk 0:00:02.2]} 30. Nxg5 {[%clk 0:00:49.8]}
30... Ng7 {[%clk 0:00:02.6]} 31. Qg4 {[%clk 0:00:49.3]} 31... Re5 {[%clk
0:00:01.5]} 32. Nf3 {[%clk 0:00:47.7]} 1-0

[Event "Early-Titled-Tuesday-Blitz-February-27-2024"]
[Site "Chess.com"]
[Date "2024.02.27"]
[Round "4"]
[White "Egor_Koshulyan"]
[Black "N4700000"]
[Result "1-0"]
[WhiteElo "2654"]
[BlackElo "2462"]
[TimeControl "180+1"]
[EndTime "8:37:23 PST"]
[Termination "Egor_Koshulyan won by resignation"]

1. e4 {[%clk 0:02:59.1]} 1... c5 {[%clk 0:02:58.7]} 2. Nf3 {[%clk 0:02:59.2]}
2... d6 {[%clk 0:02:58.5]} 3. d4 {[%clk 0:02:59.7]} 3... cxd4 {[%clk 0:02:59.1]}
4. Qxd4 {[%clk 0:03:00.6]} 4... Nf6 {[%clk 0:02:49.8]} 5. Nc3 {[%clk 0:03:00.3]}
5... Nc6 {[%clk 0:02:46.4]} 6. Bb5 {[%clk 0:02:59.8]} 6... Bd7 {[%clk
0:02:29.3]} 7. Bxc6 {[%clk 0:02:58.9]} 7... Bxc6 {[%clk 0:02:30.2]} 8. Bg5
{[%clk 0:02:58.5]} 8... e6 {[%clk 0:02:28.5]} 9. O-O-O {[%clk 0:02:57.1]} 9...
Be7 {[%clk 0:02:26.9]} 10. Qd3 {[%clk 0:02:57.3]} 10... O-O {[%clk 0:02:17.6]}
11. Nd4 {[%clk 0:02:57.5]} 11... Qa5 {[%clk 0:02:09.9]} 12. f4 {[%clk
0:02:51.8]} 12... Rfc8 {[%clk 0:02:03.8]} 13. h4 {[%clk 0:02:51.5]} 13... b5
{[%clk 0:01:41.4]} 14. e5 {[%clk 0:02:39.1]} 14... b4 {[%clk 0:01:19.1]} 15.
exf6 {[%clk 0:02:38.4]} 15... bxc3 {[%clk 0:01:07.5]} 16. fxe7 {[%clk
0:02:32.3]} 16... Qxa2 {[%clk 0:01:04.2]} 17. bxc3 {[%clk 0:02:32.5]} 17... Bd5
{[%clk 0:00:42.6]} 18. Kd2 {[%clk 0:02:14.9]} 18... f6 {[%clk 0:00:37]} 19. Rh3
{[%clk 0:01:15.2]} 19... Qc4 {[%clk 0:00:28.7]} 20. Qe3 {[%clk 0:00:51.7]} 20...
fxg5 {[%clk 0:00:24.5]} 21. hxg5 {[%clk 0:00:52.6]} 21... Rc7 {[%clk 0:00:15.7]}
22. Rdh1 {[%clk 0:00:44.4]} 22... Rac8 {[%clk 0:00:15.2]} 23. Rxh7 {[%clk
0:00:41.2]} 23... Be4 {[%clk 0:00:11.6]} 24. Qxe4 {[%clk 0:00:34]} 24... Qxc3+
{[%clk 0:00:11.1]} 25. Ke2 {[%clk 0:00:34.7]} 25... Qc4+ {[%clk 0:00:08]} 26.
Kf2 {[%clk 0:00:34.5]} 1-0

[Event "Early-Titled-Tuesday-Blitz-February-27-2024"]
[Site "Chess.com"]
[Date "2024.02.27"]
[Round "4"]
[White "maurovargas01"]
[Black "mestrefeitosa19"]
[Result "0-1"]
[WhiteElo "1872"]
[BlackElo "2250"]
[TimeControl "180+1"]
[EndTime "8:37:24 PST"]
[Termination "mestrefeitosa19 won on time"]

1. e4 {[%clk 0:02:21.6]} 1... e5 {[%clk 0:02:54.5]} 2. Nf3 {[%clk 0:02:21.5]}
2... Nc6 {[%clk 0:02:55.1]} 3. d4 {[%clk 0:02:22.4]} 3... exd4 {[%clk
0:02:55.2]} 4. Bc4 {[%clk 0:02:22.8]} 4... Bc5 {[%clk 0:02:54.1]} 5. c3 {[%clk
0:02:22.7]} 5... Nf6 {[%clk 0:02:52.8]} 6. e5 {[%clk 0:02:22]} 6... d5 {[%clk
0:02:51.6]} 7. Bb5 {[%clk 0:02:19.7]} 7... Ne4 {[%clk 0:02:51.8]} 8. cxd4 {[%clk
0:02:18.6]} 8... Bb4+ {[%clk 0:02:48]} 9. Nbd2 {[%clk 0:02:15.5]} 9... O-O
{[%clk 0:02:44]} 10. O-O {[%clk 0:02:14.1]} 10... Bg4 {[%clk 0:02:44]} 11. Qb3
{[%clk 0:02:05.9]} 11... Nxd2 {[%clk 0:02:24.3]} 12. Nxd2 {[%clk 0:02:02.9]}
12... Bxd2 {[%clk 0:02:25.2]} 13. Bxd2 {[%clk 0:02:01.3]} 13... Nxd4 {[%clk
0:02:25.5]} 14. Qd3 {[%clk 0:01:54.2]} 14... Be2 {[%clk 0:02:07.7]} 15. Qxd4
{[%clk 0:01:45.7]} 15... Bxb5 {[%clk 0:02:08.6]} 16. Rfc1 {[%clk 0:01:43.3]}
16... c6 {[%clk 0:01:57.7]} 17. Re1 {[%clk 0:01:42.4]} 17... Re8 {[%clk
0:01:55.9]} 18. f4 {[%clk 0:01:37.8]} 18... Qb6 {[%clk 0:01:54.9]} 19. Qxb6
{[%clk 0:01:31.6]} 19... axb6 {[%clk 0:01:55.8]} 20. Be3 {[%clk 0:01:30.7]}
20... c5 {[%clk 0:01:56.2]} 21. b3 {[%clk 0:01:26]} 21... Ra6 {[%clk 0:01:43.6]}
22. a4 {[%clk 0:01:25.5]} 22... Bc6 {[%clk 0:01:39.7]} 23. Bf2 {[%clk
0:01:17.1]} 23... d4 {[%clk 0:01:36.6]} 24. Rec1 {[%clk 0:01:01.1]} 24... Bd5
{[%clk 0:01:35.8]} 25. b4 {[%clk 0:01:00.3]} 25... Rc8 {[%clk 0:01:32.9]} 26.
bxc5 {[%clk 0:00:59.7]} 26... bxc5 {[%clk 0:01:24.8]} 27. Bxd4 {[%clk
0:00:51.3]} 27... Rac6 {[%clk 0:01:18.6]} 28. Bf2 {[%clk 0:00:44.7]} 28... c4
{[%clk 0:01:19]} 29. a5 {[%clk 0:00:42.9]} 29... c3 {[%clk 0:01:19.2]} 30. Bd4
{[%clk 0:00:17.4]} 30... c2 {[%clk 0:01:18.7]} 31. Ra3 {[%clk 0:00:11.3]} 31...
h6 {[%clk 0:01:17]} 32. Re3 {[%clk 0:00:10.6]} 32... Kh7 {[%clk 0:01:16.6]} 33.
Re2 {[%clk 0:00:09.4]} 33... Kg6 {[%clk 0:01:14.3]} 34. g3 {[%clk 0:00:07.7]}
34... Bf3 {[%clk 0:01:12.4]} 35. Rd2 {[%clk 0:00:06.5]} 35... Bd1 {[%clk
0:01:12.2]} 36. Kf2 {[%clk 0:00:05.4]} 36... Kf5 {[%clk 0:01:12]} 37. Ke3 {[%clk
0:00:01.9]} 37... Rc4 {[%clk 0:01:12.1]} 0-1

[Event "Early-Titled-Tuesday-Blitz-February-27-2024"]
[Site "Chess.com"]
[Date "2024.02.27"]
[Round "4"]
[White "whitemirrorninja"]
[Black "Mikhail_Golubev"]
[Result "0-1"]
[WhiteElo "2445"]
[BlackElo "2617"]
[TimeControl "180+1"]
[EndTime "8:37:27 PST"]
[Termination "Mikhail_Golubev won by resignation"]

1. Nf3 {[%clk 0:01:05.7]} 1... d6 {[%clk 0:02:59.4]} 2. c3 {[%clk 0:01:04.6]}
2... Nf6 {[%clk 0:02:58]} 3. d4 {[%clk 0:01:04.6]} 3... g6 {[%clk 0:02:58.3]} 4.
Bg5 {[%clk 0:01:04.8]} 4... Bg7 {[%clk 0:02:58.3]} 5. Nbd2 {[%clk 0:01:05.5]}
5... O-O {[%clk 0:02:56.7]} 6. e4 {[%clk 0:01:04.6]} 6... c5 {[%clk 0:02:54.9]}
7. Bd3 {[%clk 0:01:01.8]} 7... cxd4 {[%clk 0:02:52.1]} 8. cxd4 {[%clk
0:01:02.7]} 8... Nc6 {[%clk 0:02:52.2]} 9. h3 {[%clk 0:00:57.7]} 9... Nd7 {[%clk
0:02:47.5]} 10. Nb3 {[%clk 0:00:52.6]} 10... h6 {[%clk 0:02:32.8]} 11. Be3
{[%clk 0:00:50.7]} 11... a5 {[%clk 0:02:28.3]} 12. a4 {[%clk 0:00:43.4]} 12...
Nb4 {[%clk 0:02:23.1]} 13. Bb1 {[%clk 0:00:38.5]} 13... Nb6 {[%clk 0:02:22.2]}
14. O-O {[%clk 0:00:38.2]} 14... Nc4 {[%clk 0:02:21.3]} 15. Bc1 {[%clk
0:00:38.4]} 15... Bd7 {[%clk 0:02:13.5]} 16. Nbd2 {[%clk 0:00:38.3]} 16... Qc7
{[%clk 0:01:55.2]} 17. Nxc4 {[%clk 0:00:37]} 17... Qxc4 {[%clk 0:01:56.1]} 18.
Be3 {[%clk 0:00:37.2]} 18... Rfc8 {[%clk 0:01:50.1]} 19. Ra3 {[%clk 0:00:36]}
19... Nc2 {[%clk 0:01:45.8]} 20. Rc3 {[%clk 0:00:23.1]} 20... Nxe3 {[%clk
0:01:45.1]} 21. fxe3 {[%clk 0:00:20.3]} 21... Qb4 {[%clk 0:01:44.7]} 22. Qc1
{[%clk 0:00:18.7]} 22... Qxa4 {[%clk 0:01:34.6]} 23. e5 {[%clk 0:00:18.4]} 23...
dxe5 {[%clk 0:01:30.4]} 24. Nxe5 {[%clk 0:00:19.1]} 24... Bxe5 {[%clk
0:01:28.2]} 25. dxe5 {[%clk 0:00:20]} 25... Rxc3 {[%clk 0:01:14.9]} 26. Qxc3
{[%clk 0:00:19.8]} 26... Rc8 {[%clk 0:01:13.6]} 27. Qd2 {[%clk 0:00:17.8]} 27...
Be6 {[%clk 0:01:06.2]} 28. Rf4 {[%clk 0:00:14]} 28... Qc6 {[%clk 0:01:04.5]} 29.
Kh2 {[%clk 0:00:13.7]} 29... Qc1 {[%clk 0:00:48.5]} 30. Qd3 {[%clk 0:00:13.6]}
30... Qxb2 {[%clk 0:00:46.3]} 31. Rf3 {[%clk 0:00:13.4]} 31... Qxe5+ {[%clk
0:00:45.8]} 32. Rg3 {[%clk 0:00:13.3]} 32... Rc3 {[%clk 0:00:38.8]} 33. Qb5
{[%clk 0:00:12.5]} 33... Qxb5 {[%clk 0:00:37.3]} 0-1

[Event "Early-Titled-Tuesday-Blitz-February-27-2024"]
[Site "Chess.com"]
[Date "2024.02.27"]
[Round "4"]
[White "ValeriyGrinev"]
[Black "Akewjon"]
[Result "1/2-1/2"]
[WhiteElo "2575"]
[BlackElo "2813"]
[TimeControl "180+1"]
[EndTime "8:37:29 PST"]
[Termination "Game drawn by repetition"]

1. e4 {[%clk 0:03:00.9]} 1... e5 {[%clk 0:02:59.4]} 2. Nf3 {[%clk 0:02:56.3]}
2... Nc6 {[%clk 0:02:59.6]} 3. Bb5 {[%clk 0:02:54.6]} 3... a6 {[%clk 0:03:00]}
4. Bxc6 {[%clk 0:02:53.1]} 4... dxc6 {[%clk 0:03:00.9]} 5. Nxe5 {[%clk
0:02:50.5]} 5... Qd4 {[%clk 0:02:56.6]} 6. Nf3 {[%clk 0:02:47.3]} 6... Qxe4+
{[%clk 0:02:56.9]} 7. Qe2 {[%clk 0:02:46.2]} 7... Qxe2+ {[%clk 0:02:55.7]} 8.
Kxe2 {[%clk 0:02:47.1]} 8... Bd6 {[%clk 0:02:44.3]} 9. Re1 {[%clk 0:02:37.6]}
9... Bf5 {[%clk 0:02:42.8]} 10. d3 {[%clk 0:02:33.9]} 10... O-O-O {[%clk
0:02:41.9]} 11. Kf1 {[%clk 0:02:31]} 11... h6 {[%clk 0:02:40.3]} 12. h3 {[%clk
0:02:30.8]} 12... Nf6 {[%clk 0:02:39.8]} 13. Nc3 {[%clk 0:02:30.9]} 13... Nd5
{[%clk 0:02:38.5]} 14. Nxd5 {[%clk 0:02:28.2]} 14... cxd5 {[%clk 0:02:38.8]} 15.
Bd2 {[%clk 0:02:28.3]} 15... Rde8 {[%clk 0:02:29.5]} 16. Rxe8+ {[%clk
0:02:27.7]} 16... Rxe8 {[%clk 0:02:30.4]} 17. Re1 {[%clk 0:02:28.2]} 17... Rf8
{[%clk 0:02:27.7]} 18. a4 {[%clk 0:02:26.1]} 18... Bd7 {[%clk 0:02:26.7]} 19. b3
{[%clk 0:02:25.9]} 19... c5 {[%clk 0:02:25.2]} 20. Ne5 {[%clk 0:02:22.5]} 20...
Be8 {[%clk 0:02:22.9]} 21. Nf3 {[%clk 0:02:04.6]} 21... f6 {[%clk 0:02:21]} 22.
Nh4 {[%clk 0:01:59.6]} 22... Bd7 {[%clk 0:02:20.9]} 23. Ng6 {[%clk 0:01:58.6]}
23... Re8 {[%clk 0:02:21.5]} 24. Bf4 {[%clk 0:01:52]} 24... Kc7 {[%clk
0:02:14.5]} 25. Rxe8 {[%clk 0:01:37.6]} 25... Bxe8 {[%clk 0:02:11.4]} 26. Bxd6+
{[%clk 0:01:38.5]} 26... Kxd6 {[%clk 0:02:12.1]} 27. Nf4 {[%clk 0:01:38.3]}
27... c4 {[%clk 0:01:49.2]} 28. d4 {[%clk 0:01:29.4]} 28... g5 {[%clk
0:01:49.2]} 29. Ne2 {[%clk 0:01:23.9]} 29... Bg6 {[%clk 0:01:49.7]} 30. bxc4
{[%clk 0:01:22]} 30... Bxc2 {[%clk 0:01:49]} 31. c5+ {[%clk 0:01:21.8]} 31...
Kc6 {[%clk 0:01:49.2]} 32. Nc3 {[%clk 0:01:20.3]} 32... Bb3 {[%clk 0:01:37.8]}
33. a5 {[%clk 0:01:18.8]} 33... Bc4+ {[%clk 0:01:33.1]} 34. Ke1 {[%clk
0:01:14.7]} 34... Kd7 {[%clk 0:01:32.9]} 35. g3 {[%clk 0:01:13.7]} 35... Ke6
{[%clk 0:01:32.5]} 36. g4 {[%clk 0:01:09.9]} 36... h5 {[%clk 0:01:27]} 37. f3
{[%clk 0:01:09.3]} 37... h4 {[%clk 0:01:25.2]} 38. Kf2 {[%clk 0:01:09.1]} 38...
Kd7 {[%clk 0:01:17.2]} 39. Kg2 {[%clk 0:01:05]} 39... Kc6 {[%clk 0:01:17]} 40.
Kf2 {[%clk 0:01:05.3]} 40... Kd7 {[%clk 0:01:01.9]} 41. Kg2 {[%clk 0:01:05]}
41... f5 {[%clk 0:01:01.7]} 42. Kf2 {[%clk 0:01:04.1]} 42... Ke6 {[%clk
0:01:01.8]} 43. Kg2 {[%clk 0:01:04.2]} 43... fxg4 {[%clk 0:00:58.9]} 44. fxg4
{[%clk 0:01:03.5]} 44... Bd3 {[%clk 0:00:58.6]} 45. Kf2 {[%clk 0:00:56.8]} 45...
Bc4 {[%clk 0:00:51.8]} 46. Kg2 {[%clk 0:00:55.8]} 46... Kd7 {[%clk 0:00:51.4]}
47. Kf2 {[%clk 0:00:55.4]} 47... Kc6 {[%clk 0:00:51.5]} 48. Kg2 {[%clk
0:00:55.5]} 48... Bd3 {[%clk 0:00:48.9]} 49. Kf2 {[%clk 0:00:55.4]} 49... Bc4
{[%clk 0:00:49.4]} 50. Kg2 {[%clk 0:00:55.4]} 50... Bd3 {[%clk 0:00:47.8]} 51.
Kf2 {[%clk 0:00:51.2]} 51... Bc4 {[%clk 0:00:48.3]} 1/2-1/2

[Event "Early-Titled-Tuesday-Blitz-February-27-2024"]
[Site "Chess.com"]
[Date "2024.02.27"]
[Round "4"]
[White "karinachess1"]
[Black "Kopytkin"]
[Result "1-0"]
[WhiteElo "2632"]
[BlackElo "2456"]
[TimeControl "180+1"]
[EndTime "8:37:30 PST"]
[Termination "karinachess1 won on time"]

1. d4 {[%clk 0:03:00.9]} 1... Nf6 {[%clk 0:02:58.4]} 2. c4 {[%clk 0:03:01.2]}
2... d6 {[%clk 0:02:57.8]} 3. Nc3 {[%clk 0:03:00.5]} 3... Nc6 {[%clk 0:02:58.1]}
4. Nf3 {[%clk 0:02:57.4]} 4... e5 {[%clk 0:02:58.3]} 5. d5 {[%clk 0:02:57]} 5...
Nb8 {[%clk 0:02:58.5]} 6. e4 {[%clk 0:02:57.3]} 6... g6 {[%clk 0:02:58.5]} 7.
Be2 {[%clk 0:02:57.5]} 7... Bg7 {[%clk 0:02:58.9]} 8. O-O {[%clk 0:02:58.2]}
8... a5 {[%clk 0:02:59.3]} 9. Ne1 {[%clk 0:02:58.6]} 9... Na6 {[%clk 0:02:58.4]}
10. Be3 {[%clk 0:02:54.2]} 10... Nd7 {[%clk 0:02:57.2]} 11. Nd3 {[%clk
0:02:49.6]} 11... f5 {[%clk 0:02:55]} 12. exf5 {[%clk 0:02:44.4]} 12... gxf5
{[%clk 0:02:52.7]} 13. Bh5+ {[%clk 0:02:44.7]} 13... Kf8 {[%clk 0:02:53.3]} 14.
f4 {[%clk 0:02:42.7]} 14... e4 {[%clk 0:02:52.3]} 15. Nf2 {[%clk 0:02:43]} 15...
Nf6 {[%clk 0:02:48.6]} 16. Be2 {[%clk 0:02:40.3]} 16... Nc5 {[%clk 0:02:46.7]}
17. Kh1 {[%clk 0:02:40]} 17... h5 {[%clk 0:02:31.5]} 18. Nb5 {[%clk 0:02:39.9]}
18... Bd7 {[%clk 0:02:23.2]} 19. Nd4 {[%clk 0:02:39.5]} 19... Ng4 {[%clk
0:02:22.6]} 20. Qd2 {[%clk 0:02:36.4]} 20... Qh4 {[%clk 0:02:13.3]} 21. Nh3
{[%clk 0:02:36.5]} 21... b6 {[%clk 0:01:35.9]} 22. Rad1 {[%clk 0:02:36]} 22...
Bf6 {[%clk 0:01:23.8]} 23. b3 {[%clk 0:02:32.6]} 23... Re8 {[%clk 0:01:23.4]}
24. a3 {[%clk 0:02:31.5]} 24... Bxd4 {[%clk 0:01:18.2]} 25. Qxd4 {[%clk
0:02:31.8]} 25... Rg8 {[%clk 0:00:57.6]} 26. b4 {[%clk 0:02:31.8]} 26... axb4
{[%clk 0:00:56.5]} 27. axb4 {[%clk 0:02:32.7]} 27... Nb3 {[%clk 0:00:53]} 28.
Qc3 {[%clk 0:02:30.2]} 28... Re7 {[%clk 0:00:23.6]} 29. Qxb3 {[%clk 0:02:17.7]}
29... Reg7 {[%clk 0:00:22.4]} 30. Rg1 {[%clk 0:02:11.2]} 30... Nxh2 {[%clk
0:00:18]} 31. Kxh2 {[%clk 0:01:54.2]} 31... Qg3+ {[%clk 0:00:17.2]} 32. Kh1
{[%clk 0:01:54.2]} 32... Rg4 {[%clk 0:00:14.3]} 33. Qc3 {[%clk 0:01:11.3]} 33...
Rh4 {[%clk 0:00:07.6]} 34. Bf1 {[%clk 0:01:11.6]} 34... Kf7 {[%clk 0:00:04.8]}
35. Qd2 {[%clk 0:01:07.4]} 35... Rxh3+ {[%clk 0:00:01.3]} 36. gxh3 {[%clk
0:01:07.2]} 36... Qf3+ {[%clk 0:00:02.1]} 37. Kh2 {[%clk 0:00:59.2]} 37... Rxg1
{[%clk 0:00:01.1]} 38. Kxg1 {[%clk 0:00:54.6]} 1-0